bitfinex/quotes_SOLUSD_20250102
["timestamp","ask_amount","ask_price","bid_price","bid_amount"]
[1735820330062,31.6859274,209.22,209.16,7.9090434]
[1735820330541,7.9090434,209.23,209.17,7.9090434]
[1735820331142,31.6859274,209.22,209.16,7.9090434]
[1735820331457,27.9090434,209.25,209.19,7.9090434]
[1735820331864,23.776884,209.24,209.18,7.9090434]
[1735820332171,31.6859274,209.24,209.17,7.9090434]
[1735820332367,31.6859274,209.24,209.18,7.9090434]
[1735820333073,31.6859274,209.24,209.17,7.9090434]
[1735820334273,23.776884,209.24,209.17,7.9090434]
[1735820334473,23.776884,209.22,209.17,7.9090434]
[1735820335143,23.776884,209.22,209.16,7.9090434]
[1735820336583,7.9090434,209.22,209.15,7.9090434]
[1735820337171,7.9090434,209.22,209.16,7.9090434]
[1735820337364,7.9090434,209.22,209.15,7.9090434]
[1735820338684,1.5156,209.3,209.16,6.5423]
[1735820338875,15.06405615,209.35,209.27,7.9090434]
[1735820339173,7.9090434,209.34,209.27,7.9090434]
[1735820339343,15.44107147,209.33,209.27,7.9090434]
[1735820339764,23.776884,209.32,209.26,7.9090434]
[1735820340151,23.776884,209.33,209.27,7.9090434]
[1735820340349,7.9090434,209.34,209.27,7.9090434]
[1735820340592,7.9090434,209.33,209.26,7.9090434]
[1735820342053,7.9090434,209.32,209.26,7.9090434]
[1735820342253,7.9090434,209.33,209.27,7.9090434]
[1735820342769,23.776884,209.35,209.28,7.9090434]
[1735820342951,9.4768434,209.36,209.29,7.9090434]
[1735820343347,1.5678,209.36,209.29,7.9090434]
[1735820343576,23.776884,209.35,209.29,7.9090434]
[1735820344684,23.776884,209.35,209.27,7.9090434]
[1735820344856,7.9090434,209.33,209.25,15.064056]
[1735820345188,7.9090434,209.33,209.27,7.9090434]
[1735820345388,7.9090434,209.33,209.26,7.9090434]
[1735820345682,7.9090434,209.34,209.28,7.9090434]
[1735820345882,27.9090434,209.35,209.28,7.9090434]
[1735820346479,1.5678,209.36,209.31,7.9090434]
[1735820346778,7.9090434,209.38,209.31,7.9090434]
[1735820347277,7.9090434,209.37,209.31,7.9090434]
[1735820348089,20.0,209.37,209.32,7.9090434]
[1735820348279,23.776884,209.36,209.32,7.9090434]
[1735820350166,23.776884,209.37,209.32,7.9090434]
[1735820350365,31.6859274,209.37,209.28,5.0]
[1735820350557,23.776884,209.34,209.29,7.9090434]
[1735820351060,7.9090434,209.36,209.29,7.9090434]
[1735820351462,23.776884,209.35,209.29,7.9090434]
[1735820352576,7.9090434,209.35,209.29,7.9090434]
[1735820353663,23.776884,209.35,209.29,7.9090434]
[1735820354578,7.9090434,209.36,209.28,5.0]
[1735820354754,7.9090434,209.36,209.3,7.9090434]
[1735820354957,7.9090434,209.36,209.29,7.9090434]
[1735820355685,7.9090434,209.36,209.3,7.9090434]
[1735820357185,20.0,209.37,209.3,7.9090434]
[1735820357371,7.9090434,209.36,209.3,7.9090434]
[1735820363180,7.9090434,209.36,209.31,7.9090434]
[1735820363181,23.776884,209.36,209.31,7.9090434]
[1735820363491,7.9090434,209.36,209.31,15.064056]
[1735820363993,7.9090434,209.38,209.32,7.9090434]
[1735820364289,23.776884,209.37,209.32,7.9090434]
[1735820364671,20.0,209.37,209.33,7.9090434]
[1735820366389,20.0,209.37,209.34,7.9090434]
[1735820368795,11.936,209.45,209.36,7.9090434]
[1735820368977,7.9090434,209.44,209.37,7.9090434]
[1735820369293,31.6859274,209.43,209.37,7.9090434]
[1735820369597,7.9090434,209.43,209.37,7.9090434]
[1735820370696,23.776884,209.43,209.37,7.9090434]
[1735820372894,7.9090434,209.43,209.37,7.9090434]
[1735820373085,13.5938,209.48,209.37,7.9090434]
[1735820373288,7.9090434,209.43,209.37,7.9090434]
[1735820374105,23.776884,209.43,209.37,7.9090434]
[1735820374294,31.6859274,209.43,209.37,7.9090434]
[1735820374497,23.776884,209.43,209.37,7.9090434]
[1735820374685,31.6859274,209.43,209.37,7.9090434]
[1735820374884,31.6859274,209.43,209.36,7.9090434]
[1735820376013,23.776884,209.41,209.36,7.9090434]
[1735820376720,7.9090434,209.4,209.33,5.0]
[1735820376878,31.6859274,209.39,209.33,12.9090434]
[1735820377077,23.776884,209.39,209.34,7.9090434]
[1735820378898,23.776884,209.39,209.33,12.9090434]
[1735820379103,7.9090434,209.4,209.31,15.064056]
[1735820379104,7.9090434,209.35,209.31,15.064056]
[1735820379276,23.776884,209.34,209.29,5.0]
[1735820379476,23.776884,209.34,209.3,15.064056]
[1735820380300,7.9090434,209.35,209.3,7.9090434]
[1735820380301,23.776884,209.35,209.3,7.9090434]
[1735820388399,23.776884,209.36,209.31,7.9090434]
[1735820392023,23.776884,209.37,209.32,7.9090434]
[1735820393533,31.6859274,209.37,209.31,7.9090434]
[1735820393708,7.9090434,209.37,209.31,7.9090434]
[1735820394926,7.9090434,209.37,209.3,7.9090434]
[1735820396528,23.776884,209.4,209.29,22.9730994]
[1735820396529,20.0,209.34,209.29,22.9730994]
[1735820396700,7.9090434,209.33,209.26,5.0]
[1735820396917,7.9090434,209.35,209.29,7.9090434]
[1735820397957,23.776884,209.34,209.29,7.9090434]
[1735820398435,23.776884,209.34,209.28,7.9090434]
[1735820398831,23.776884,209.39,209.28,7.9090434]
[1735820399042,23.776884,209.35,209.29,7.9090434]
[1735820399343,23.776884,209.35,209.26,5.0]
[1735820399539,43.776884,209.36,209.29,7.9090434]
[1735820401259,43.776884,209.36,209.28,7.9090434]
[1735820401857,7.9090434,209.35,209.28,7.9090434]
[1735820402154,7.9090434,209.35,209.27,7.9090434]
[1735820402324,23.776884,209.33,209.27,7.9090434]
[1735820402749,31.6859274,209.33,209.26,7.9090434]
[1735820405552,31.6859274,209.31,209.24,5.0]
[1735820405725,23.776884,209.29,209.23,7.9090434]
[1735820405928,31.6859274,209.29,209.22,12.9090434]
[1735820406461,23.776884,209.27,209.22,5.0]
[1735820406642,23.776884,209.25,209.21,1.6206]
[1735820406841,23.776884,209.29,209.21,1.6206]
[1735820407033,23.776884,209.26,209.21,1.6206]
[1735820408125,7.9090434,209.26,209.21,1.6206]
[1735820408328,23.776884,209.26,209.21,1.6206]
[1735820408758,31.6859274,209.26,209.21,1.6206]
[1735820409061,31.6859274,209.26,209.2,5.0]
[1735820409368,7.9090434,209.24,209.17,7.9090434]
[1735820409542,23.776884,209.22,209.17,7.9090434]
[1735820409745,31.6859274,209.22,209.16,12.9090434]
[1735820409932,23.776884,209.22,209.17,7.9090434]
[1735820410565,23.776884,209.22,209.16,12.9090434]
[1735820410566,7.9090434,209.22,209.16,12.9090434]
[1735820410731,7.9090434,209.22,209.15,7.9090434]
[1735820412528,11.9459,209.28,209.14,5.0]
[1735820412529,7.9090434,209.2,209.14,12.9090434]
[1735820413257,1.5113,209.26,209.13,7.7001]
[1735820413550,1.5113,209.26,209.07,0.71719791]
[1735820413551,23.776884,209.15,209.1,12.9090434]
[1735820413754,7.9090434,209.13,209.1,5.0]
[1735820414068,7.9090434,209.14,209.1,5.0]
[1735820414352,7.9090434,209.14,209.08,9.4920434]
[1735820414552,16.94799999,209.24,209.08,1.583]
[1735820414553,7.9090434,209.13,209.08,1.583]
[1735820414758,23.776884,209.12,209.08,1.583]
[1735820414936,31.6859274,209.12,209.07,6.192]
[1735820415336,31.6859274,209.12,209.06,12.9090434]
[1735820417154,31.6859274,209.12,209.04,5.0]
[1735820417357,7.9090434,209.1,209.04,12.9090434]
[1735820417556,11.9518,209.18,209.03,9.4854434]
[1735820417557,23.776884,209.08,209.03,9.4854434]
[1735820418562,31.6859274,209.08,209.03,1.5764]
[1735820418748,23.776884,209.06,209.03,1.5764]
[1735820419059,7.7795823,209.08,209.03,1.5764]
[1735820419235,7.9090434,209.07,209.02,6.4483]
[1735820419434,31.6859274,209.04,208.98,6.6363]
[1735820419659,31.6859274,209.04,208.98,14.5453434]
[1735820420162,31.6859274,209.04,208.98,6.6363]
[1735820421242,31.6859274,209.02,208.98,1.6363]
[1735820421962,31.6361736,209.1,208.94,5.0]
[1735820421963,31.6859274,209.0,208.94,5.0]
[1735820422459,7.9090434,209.02,208.96,12.9090434]
[1735820423034,1.5671,209.11,209.0,5.0]
[1735820423340,7.9090434,209.05,209.0,5.0]
[1735820423545,23.776884,209.04,209.0,12.9090434]
[1735820424067,7.9090434,209.08,209.03,5.0]
[1735820424241,7.9090434,209.09,209.03,5.0]
[1735820424561,23.776884,209.08,209.02,7.9090434]
[1735820424774,23.776884,209.06,209.01,12.9090434]
[1735820425145,7.9090434,209.08,209.01,12.9090434]
[1735820425641,23.776884,209.06,209.01,12.9090434]
[1735820426068,23.776884,209.06,209.01,5.0]
[1735820426677,7.9090434,209.06,209.01,5.0]
[1735820427463,23.776884,209.06,209.01,5.0]
[1735820427646,7.9090434,209.08,209.01,12.9090434]
[1735820428169,23.776884,209.06,209.01,5.0]
[1735820428669,7.9090434,209.06,209.01,5.0]
[1735820428846,7.9090434,209.06,209.0,7.9090434]
[1735820429047,7.9090434,209.06,208.99,20.9562434]
[1735820431378,23.776884,209.04,208.99,13.0472]
[1735820432645,7.9090434,209.06,208.99,20.9562434]
[1735820433652,23.776884,209.06,209.0,7.9090434]
[1735820434174,7.9090434,209.06,208.99,20.9562434]
[1735820434552,1.5565,209.15,209.05,7.9090434]
[1735820434759,7.9090434,209.12,209.05,7.9090434]
[1735820435077,23.776884,209.1,209.05,7.9090434]
[1735820435278,7.9090434,209.12,209.06,12.9090434]
[1735820435771,23.776884,209.11,209.06,12.9090434]
[1735820436456,23.776884,209.11,209.06,5.0]
[1735820437776,31.6859274,209.11,209.06,5.0]
[1735820437951,7.9090434,209.11,209.06,5.0]
[1735820439158,23.776884,209.11,209.06,5.0]
[1735820439780,7.9090434,209.11,209.06,5.0]
[1735820440078,23.776884,209.11,209.06,5.0]
[1735820440271,23.776884,209.14,209.07,7.9090434]
[1735820440454,23.776884,209.12,209.07,7.9090434]
[1735820442875,23.776884,209.12,209.06,12.9090434]
[1735820443179,7.9090434,209.12,209.06,12.9090434]
[1735820444556,23.776884,209.12,209.06,12.9090434]
[1735820444761,7.9090434,209.13,209.08,5.0]
[1735820445599,23.776884,209.19,209.08,12.9090434]
[1735820445880,7.9090434,209.17,209.11,5.0]
[1735820446085,7.9090434,209.17,209.11,12.9090434]
[1735820446290,7.9090434,209.16,209.09,12.9090434]
[1735820446984,23.776884,209.14,209.09,12.9090434]
[1735820448191,23.776884,209.14,209.09,5.0]
[1735820448482,7.9090434,209.16,209.11,5.0]
[1735820448685,7.9090434,209.17,209.11,5.0]
[1735820448885,27.9090434,209.19,209.13,5.0]
[1735820449095,7.9090434,209.19,209.13,5.0]
[1735820449464,23.776884,209.18,209.13,5.0]
[1735820451490,23.776884,209.18,209.13,12.9090434]
[1735820451999,13.76675846,209.24,209.17,5.0]
[1735820452167,21.67580186,209.24,209.19,5.0]
[1735820452800,23.776884,209.23,209.19,5.0]
[1735820453496,31.6859274,209.23,209.15,5.0]
[1735820453806,7.9090434,209.19,209.15,5.0]
[1735820454779,7.9090434,209.2,209.15,5.0]
[1735820459107,7.9090434,209.19,209.15,5.0]
[1735820459893,7.9090434,209.2,209.15,5.0]
[1735820460690,7.9090434,209.19,209.15,5.0]
[1735820461012,23.776884,209.18,209.15,5.0]
[1735820461193,7.9090434,209.17,209.13,5.0]
[1735820461383,7.9090434,209.17,209.11,5.0]
[1735820462792,7.9090434,209.17,209.13,5.0]
[1735820462994,7.9090434,209.17,209.1,7.9090434]
[1735820462995,7.9090434,209.17,209.11,5.0]
[1735820463309,7.9090434,209.18,209.11,12.9090434]
[1735820463488,7.9090434,209.18,209.13,5.0]
[1735820464899,23.776884,209.18,209.13,5.0]
[1735820465620,7.9090434,209.19,209.15,5.0]
[1735820466919,43.776884,209.22,209.13,5.0]
[1735820467117,7.9090434,209.19,209.13,5.0]
[1735820467418,31.6859274,209.18,209.11,12.9090434]
[1735820467603,31.6859274,209.18,209.13,5.0]
[1735820467802,31.6859274,209.18,209.11,12.9090434]
[1735820470824,43.776884,209.2,209.11,12.9090434]
[1735820470995,7.9090434,209.18,209.11,12.9090434]
[1735820471196,7.9090434,209.16,209.11,5.0]
[1735820471529,7.9090434,209.15,209.09,12.9090434]
[1735820471712,23.776884,209.14,209.09,12.9090434]
[1735820472029,23.776884,209.14,209.09,5.0]
[1735820472730,7.9090434,209.14,209.09,5.0]
[1735820474225,1.5047,209.27,209.14,5.0]
[1735820474431,7.9090434,209.24,209.17,12.9090434]
[1735820474611,27.9090434,209.26,209.19,12.9090434]
[1735820475003,23.776884,209.25,209.19,12.9090434]
[1735820475396,7.9090434,209.25,209.19,5.0]
[1735820475703,23.776884,209.25,209.19,12.9090434]
[1735820476426,7.9090434,209.25,209.19,5.0]
[1735820476800,7.9090434,209.24,209.19,5.0]
[1735820477504,23.776884,209.23,209.17,12.9090434]
[1735820477706,31.6859274,209.23,209.17,12.9090434]
[1735820479004,23.776884,209.23,209.17,12.9090434]
[1735820480245,7.9090434,209.23,209.17,12.9090434]
[1735820481338,7.9090434,209.23,209.15,5.0]
[1735820481633,7.9090434,209.19,209.15,5.0]
[1735820482246,7.9090434,209.19,209.13,5.0]
[1735820482419,7.9090434,209.16,209.11,5.0]
[1735820482603,7.9090434,209.15,209.11,5.0]
[1735820483815,7.9090434,209.14,209.09,5.0]
[1735820484021,7.9090434,209.13,209.09,5.0]
[1735820486408,31.6859274,209.12,209.07,5.0]
[1735820487632,7.9090434,209.08,209.05,5.0]
[1735820487843,7.9090434,209.07,209.03,5.0]
[1735820488051,23.776884,209.06,209.03,5.0]
[1735820488222,7.9090434,209.08,209.03,5.0]
[1735820488912,31.6859274,209.07,209.03,5.0]
[1735820489332,23.776884,209.07,209.03,5.0]
[1735820489733,23.776884,209.08,209.03,5.0]
[1735820489932,7.9090434,209.08,209.03,5.0]
[1735820492740,1.5761,209.16,209.07,5.0]
[1735820493047,7.9090434,209.13,209.07,5.0]
[1735820495847,23.776884,209.11,209.07,5.0]
[1735820496450,7.9090434,209.08,209.03,5.0]
[1735820496647,23.776884,209.07,209.03,5.0]
[1735820498560,7.9090434,209.09,209.05,5.0]
[1735820498851,7.9090434,209.1,209.05,5.0]
[1735820499044,31.6859274,209.09,209.05,5.0]
[1735820499548,7.9090434,209.08,209.05,5.0]
[1735820499857,23.776884,209.07,209.03,5.0]
[1735820500022,7.9090434,209.06,209.03,5.0]
[1735820500228,7.9090434,209.04,209.0,5.0]
[1735820500768,7.9090434,209.03,209.0,5.0]
[1735820502025,7.9090434,209.03,208.98,5.0]
[1735820502726,7.9090434,209.04,209.0,5.0]
[1735820502927,7.9090434,209.03,209.0,5.0]
[1735820505254,11.9551,209.12,209.02,5.0]
[1735820505457,7.9090434,209.06,209.02,5.0]
[1735820506359,31.6859274,209.05,209.02,5.0]
[1735820506561,7.9090434,209.04,209.0,5.0]
[1735820508060,7.9090434,209.03,209.0,5.0]
[1735820509142,7.9090434,209.04,209.0,5.0]
[1735820509674,7.9090434,209.03,209.0,5.0]
[1735820509856,7.9090434,209.03,208.98,5.0]
[1735820510454,31.6859274,209.02,208.98,5.0]
[1735820513473,7.9090434,209.01,208.98,5.0]
[1735820515649,7.9090434,209.0,208.98,5.0]
[1735820515845,7.9090434,209.0,208.94,7.9090434]
[1735820515846,7.9090434,208.99,208.96,5.0]
[1735820516048,7.9090434,208.98,208.96,5.0]
[1735820516267,7.9090434,208.98,208.94,5.0]
[1735820516872,7.9090434,208.97,208.94,5.0]
[1735820517248,7.9090434,208.95,208.92,5.0]
[1735820521372,7.9090434,208.94,208.9,5.0]
[1735820521881,7.9090434,208.93,208.9,5.0]
[1735820524386,23.776884,208.95,208.9,5.0]
[1735820524568,7.9090434,208.94,208.9,5.0]
[1735820524765,23.776884,208.93,208.9,5.0]
[1735820525188,20.0,208.97,208.92,5.0]
[1735820525384,28.91559999,209.07,208.94,5.0]
[1735820525385,1.5029,209.06,208.94,5.0]
[1735820525570,7.9090434,208.99,208.94,5.0]
[1735820525896,7.9090434,208.98,208.94,5.0]
[1735820527095,7.9090434,208.97,208.94,5.0]
[1735820527265,7.9090434,208.96,208.94,5.0]
[1735820527766,7.9090434,208.95,208.94,5.0]
[1735820528068,7.9090434,208.95,208.92,5.0]
[1735820528470,7.9090434,208.95,208.94,5.0]
[1735820529500,7.9090434,208.95,208.92,5.0]
[1735820529666,7.9090434,208.96,208.92,5.0]
[1735820529868,96.488817,209.1,208.86,23.318244]
[1735820529869,7.9090434,208.93,208.9,5.0]
[1735820530198,7.9090434,208.92,208.88,5.0]
[1735820530395,7.9090434,208.91,208.88,5.0]
[1735820530695,7.9090434,208.9,208.88,5.0]
[1735820532108,1.5426,208.99,208.92,5.0]
[1735820532390,7.9090434,208.97,208.92,5.0]
[1735820532811,7.9090434,208.96,208.92,5.0]
[1735820532968,23.776884,208.98,208.92,5.0]
[1735820532969,7.9090434,208.94,208.92,5.0]
[1735820533294,7.9090434,208.94,208.9,5.0]
[1735820533472,7.9090434,208.94,208.92,5.0]
[1735820534678,7.9090434,208.95,208.92,5.0]
[1735820534885,7.9090434,208.97,208.92,5.0]
[1735820535599,7.9090434,208.96,208.92,5.0]
[1735820536000,27.9090434,208.95,208.92,5.0]
[1735820536173,23.776884,208.98,208.92,5.0]
[1735820536368,7.9090434,208.96,208.92,5.0]
[1735820538606,23.776884,208.98,208.92,5.0]
[1735820538607,7.9090434,208.95,208.92,5.0]
[1735820538805,7.9090434,208.96,208.92,5.0]
[1735820539005,7.9090434,208.97,208.95,5.0]
[1735820539381,20.0,208.97,208.95,5.0]
[1735820540380,7.9090434,208.99,208.95,5.0]
[1735820540609,7.9090434,209.0,208.95,5.0]
[1735820545597,7.9090434,208.99,208.95,5.0]
[1735820548319,39.97475134,209.03,208.93,5.0]
[1735820548320,7.9090434,208.97,208.93,5.0]
[1735820548498,7.9090434,208.96,208.93,5.0]
[1735820549618,7.9090434,208.97,208.93,5.0]
[1735820549822,31.6859274,208.99,208.93,5.0]
[1735820549998,7.9090434,208.97,208.93,5.0]
[1735820551426,7.9090434,208.97,208.91,5.0]
[1735820551641,7.9090434,208.95,208.91,5.0]
[1735820552423,7.9090434,208.94,208.91,5.0]
[1735820552608,7.9090434,208.94,208.89,5.0]
[1735820552925,7.9090434,208.93,208.89,5.0]
[1735820553608,7.9090434,208.94,208.89,5.0]
[1735820553803,7.9090434,208.93,208.89,5.0]
[1735820554014,7.9090434,208.92,208.89,5.0]
[1735820556115,7.9090434,208.91,208.89,5.0]
[1735820556523,7.9090434,208.92,208.89,5.0]
[1735820558526,7.9090434,208.91,208.89,5.0]
[1735820559441,20.0,208.94,208.89,5.0]
[1735820559631,7.9090434,208.91,208.89,5.0]
[1735820561939,11.9628,208.98,208.86,15.613644]
[1735820561940,1.5313,209.01,208.91,5.0]
[1735820562145,7.9090434,208.95,208.91,5.0]
[1735820564932,7.9090434,208.93,208.91,5.0]
[1735820566932,7.9090434,208.92,208.89,5.0]
[1735820567140,20.0,208.95,208.89,5.0]
[1735820567320,7.9090434,208.93,208.89,5.0]
[1735820568125,7.9090434,208.91,208.89,5.0]
[1735820568436,7.9090434,208.92,208.89,5.0]
[1735820568836,20.0,208.95,208.92,5.0]
[1735820569035,7.9090434,208.94,208.92,5.0]
[1735820572443,27.9090434,208.95,208.92,5.0]
[1735820574045,20.0,208.95,208.92,5.0]
[1735820574246,20.0,208.95,208.94,5.0]
[1735820574728,5.06266992,209.02,208.96,5.0]
[1735820574934,7.9090434,209.03,208.99,5.0]
[1735820575133,20.0,209.01,208.99,5.0]
[1735820575336,7.9090434,209.04,208.99,5.0]
[1735820576623,20.0,209.03,209.02,5.0]
[1735820577039,24.28199754,209.05,209.02,5.0]
[1735820577245,20.0,209.02,209.0,5.0]
[1735820577447,7.9090434,209.03,209.0,5.0]
[1735820577750,20.0,208.98,208.96,5.0]
[1735820579443,7.9090434,208.99,208.96,5.0]
[1735820579952,7.9090434,209.0,208.96,5.0]
[1735820580325,27.9090434,209.01,208.98,5.0]
[1735820580520,7.9090434,209.02,208.98,5.0]
[1735820580755,7.9090434,209.01,208.98,5.0]
[1735820580932,20.0,209.01,208.98,5.0]
[1735820581650,27.9090434,209.01,208.98,5.0]
[1735820582056,7.9090434,209.0,208.98,5.0]
[1735820583639,7.9090434,209.0,208.96,5.0]
[1735820584952,7.9090434,209.0,208.96,12.909043]
[1735820585628,7.9090434,209.0,208.96,5.0]
[1735820587157,27.9090434,209.01,208.96,5.0]
[1735820587353,7.9090434,209.01,208.96,5.0]
[1735820589230,20.0,208.97,208.96,5.0]
[1735820590651,7.9090434,209.01,208.96,5.0]
[1735820591058,20.0,208.97,208.96,5.0]
[1735820591773,7.9090434,208.98,208.96,5.0]
[1735820591938,7.9090434,208.98,208.94,5.0]
[1735820593149,7.9090434,208.95,208.91,5.0]
[1735820593350,20.0,208.97,208.95,5.0]
[1735820593552,6.57443472,209.03,209.0,5.0]
[1735820593755,7.9090434,209.04,209.0,5.0]
[1735820593958,20.0,209.01,209.0,5.0]
[1735820595664,20.0,209.03,209.02,5.0]
[1735820596969,7.9090434,209.08,209.04,5.0]
[1735820597172,20.0,209.05,209.04,5.0]
[1735820598752,15.36752381,209.09,209.07,5.0]
[1735820599152,15.36752381,209.09,209.07,12.9090434]
[1735820599546,20.0,209.11,209.1,5.0]
[1735820600467,7.9090434,209.14,209.1,5.0]
[1735820600651,7.9090434,209.16,209.1,5.0]
[1735820600857,1.5231,209.19,209.13,5.0]
[1735820601061,7.9090434,209.18,209.13,5.0]
[1735820602063,7.9090434,209.17,209.13,5.0]
[1735820602675,7.9090434,209.18,209.13,5.0]
[1735820603575,7.9090434,209.18,209.15,5.0]
[1735820603875,20.0,209.16,209.15,5.0]
[1735820604044,23.26980572,209.19,209.18,5.0]
[1735820604045,15.36076232,209.19,209.18,5.0]
[1735820605477,15.36076232,209.19,209.18,12.9090434]
[1735820605654,7.9090434,209.25,209.2,5.0]
[1735820605866,27.9090434,209.26,209.23,5.0]
[1735820606284,1.6175,209.31,209.23,5.0]
[1735820606285,7.9090434,209.27,209.23,5.0]
[1735820607479,7.9090434,209.26,209.23,5.0]
[1735820609182,23.776884,209.3,209.21,5.0]
[1735820609183,7.9090434,209.25,209.21,5.0]
[1735820609477,7.9090434,209.24,209.21,5.0]
[1735820609777,7.9090434,209.25,209.21,5.0]
[1735820611261,20.0,209.27,209.21,5.0]
[1735820611262,7.9090434,209.23,209.21,5.0]
[1735820611570,7.9090434,209.23,209.19,5.0]
[1735820611977,7.9090434,209.21,209.17,5.0]
[1735820613170,23.776884,209.26,209.19,5.0]
[1735820613171,7.9090434,209.22,209.19,5.0]
[1735820613474,27.9090434,209.23,209.19,5.0]
[1735820614582,7.9090434,209.22,209.19,5.0]
[1735820618781,7.9090434,209.22,209.17,5.0]
[1735820619285,7.9090434,209.21,209.17,5.0]
[1735820619766,20.0,209.18,209.17,5.0]
[1735820622386,20.0,209.21,209.17,5.0]
[1735820622579,20.0,209.18,209.17,5.0]
[1735820623471,27.9090434,209.18,209.15,5.0]
[1735820623689,20.0,209.16,209.15,5.0]
[1735820623890,20.0,209.16,209.13,5.0]
[1735820624064,7.9090434,209.15,209.13,5.0]
[1735820625283,20.0,209.14,209.13,5.0]
[1735820626360,7.9090434,209.15,209.13,5.0]
[1735820628787,7.9090434,209.14,209.08,5.0]
[1735820628972,7.9090434,209.09,209.06,5.0]
[1735820629285,7.9090434,209.08,209.06,5.0]
[1735820631186,7.9090434,209.07,209.04,5.0]
[1735820631979,7.9090434,209.08,209.07,5.0]
[1735820632593,20.0,209.06,209.05,5.0]
[1735820633298,20.0,209.06,209.03,5.0]
[1735820637192,7.9090434,209.06,209.01,5.0]
[1735820637391,20.0,209.07,209.01,5.0]
[1735820637392,7.9090434,209.05,209.01,5.0]
[1735820637777,20.0,209.02,209.01,5.0]
[1735820639989,7.9090434,209.06,209.01,5.0]
[1735820640502,20.0,209.06,209.05,5.0]
[1735820641089,7.9090434,209.08,209.07,5.0]
[1735820641298,1.5424,209.13,209.09,5.0]
[1735820641601,7.9090434,209.14,209.11,5.0]
[1735820641976,20.0,209.12,209.11,5.0]
[1735820642308,7.9090434,209.13,209.11,5.0]
[1735820642669,7.9090434,209.14,209.11,5.0]
[1735820642900,20.0,209.12,209.11,5.0]
[1735820643081,7.9090434,209.15,209.11,5.0]
[1735820643275,7.9090434,209.15,209.13,5.0]
[1735820643481,20.0,209.11,209.1,5.0]
[1735820645407,7.9090434,209.15,209.14,5.0]
[1735820645874,27.9090434,209.15,209.14,5.0]
[1735820647286,20.0,209.15,209.14,5.0]
[1735820648414,7.9090434,209.19,209.14,5.0]
[1735820648577,7.9090434,209.19,209.17,5.0]
[1735820649077,20.0,209.16,209.15,5.0]
[1735820649292,7.9090434,209.16,209.13,5.0]
[1735820649603,20.0,209.14,209.13,5.0]
[1735820650380,7.9090434,209.14,209.11,5.0]
[1735820650572,7.9090434,209.13,209.11,5.0]
[1735820651400,7.9090434,209.12,209.11,5.0]
[1735820652002,7.9090434,209.13,209.11,5.0]
[1735820652300,7.9090434,209.14,209.11,5.0]
[1735820652898,7.9090434,209.15,209.14,5.0]
[1735820653496,7.9090434,209.17,209.16,5.0]
[1735820653703,7.9090434,209.18,209.16,5.0]
[1735820654780,20.0,209.18,209.16,5.0]
[1735820654997,27.9090434,209.18,209.16,5.0]
[1735820655604,7.9090434,209.17,209.16,5.0]
[1735820657108,20.0,209.15,209.14,5.0]
[1735820657415,7.9090434,209.16,209.14,5.0]
[1735820657579,7.9090434,209.15,209.12,5.0]
[1735820657777,7.9090434,209.14,209.12,5.0]
[1735820660412,27.9090434,209.15,209.12,5.0]
[1735820660595,27.9090434,209.15,209.14,5.0]
[1735820660792,20.0,209.15,209.14,5.0]
[1735820661129,7.9090434,209.18,209.17,5.0]
[1735820661914,7.9090434,209.18,209.15,5.0]
[1735820662224,7.9090434,209.17,209.15,5.0]
[1735820663094,7.9090434,209.16,209.13,5.0]
[1735820663437,7.9090434,209.15,209.13,5.0]
[1735820665952,7.9090434,209.14,209.13,5.0]
[1735820668006,20.0,209.12,209.11,5.0]